Cogmind - Beta 16 @@@ ROGUE MODE // 2026.01.27 @ 22:12:02 Player: Ev Result: Destroyed by S-10 Pest with Light Assault Rifle Performance ------------- Evolutions (1) 500 Regions Visited (4) 800 Robots Destroyed (26) 130 Value Destroyed (736) 736 Prototype IDs (1) 20 Alien Tech Used (0) 0 Bonus (0) 0 TOTAL SCORE: 2186 Bonus ------- None Cogmind --------- Core Integrity 0/400 Matter 131/300 Energy 100/100 System Corruption 3% Temperature Cool (6) Movement Core (100) Ox1 Location -9/Mines Parts ------- > --- POWER (1) -------- (None) > --- PROPULSION (2) --- (None) > --- UTILITY (3) ------ Signal Interpreter > --- WEAPON (3) ------- Particle Cannon > --- INVENTORY (5) ---- Light Ion Engine Small Storage Unit Hardened Light Armor Plating Shield Generator Improved Medium Laser Peak State ------------ > --- POWER ------------ Ion Engine > --- PROPULSION ------- Aluminum Leg Aluminum Leg > --- UTILITY ---------- Cooling System Signal Interpreter Hardened Light Armor Plating > --- WEAPON ----------- Medium Laser Improved Medium Laser Rocket Launcher > --- INVENTORY -------- Light Ion Engine Small Storage Unit Visual Processing Unit Weapon Shielding Shield Generator [Rating: 14] Favorites ----------- Power Ion Engine Engine Ion Engine Propulsion Aluminum Leg Leg Aluminum Leg Wheel Wheel Utility Signal Interpreter Device Heat Sink Storage Small Storage Unit Processor Signal Interpreter Protection Hardened Light Armor Plating Weapon Medium Laser Energy Gun Medium Laser Energy Cannon Particle Cannon Launcher Rocket Launcher Build | -11 -10 -10 -9 -9 ------- Run | Yrd Mat Min Mat Min Slots Evolved 2 | . . . 2 . Power . | . . . . . Propulsion . | . . . . . Utility 1 | . . . 1 . Weapon 1 | . . . 1 . Parts Attached 24 | 6 7 1 4 6 Power 2 | 1 1 . . . Engine 2 | 1 1 . . . Core . | . . . . . Reactor . | . . . . . Propulsion 6 | 2 1 1 . 2 Treads . | . . . . . Leg 2 | . 1 1 . . Wheel 4 | 2 . . . 2 Hover . | . . . . . Flight . | . . . . . Utility 7 | 1 3 . 2 1 Device 2 | . 1 . 1 . Storage 1 | 1 . . . . Processor 1 | . 1 . . . Hackware . | . . . . . Protection 3 | . 1 . 1 1 Artifact . | . . . . . Weapon 9 | 2 2 . 2 3 Energy Gun 4 | 2 1 . 1 . Energy Cannon 3 | . . . . 3 Ballistic Gun . | . . . . . Ballistic Cannon . | . . . . . Launcher 2 | . 1 . 1 . Special Weapon . | . . . . . Impact Weapon . | . . . . . Slashing Weapon . | . . . . . Piercing Weapon . | . . . . . Special Melee Weapon . | . . . . . Unidentified Prototypes 1 | . . . 1 . Parts Lost 12 | . 1 . . 11 Power 1 | . . . . 1 Propulsion 4 | . . . . 4 Utility 3 | . . . . 3 Weapon 4 | . 1 . . 3 Highest Loss Streak 6 | . 1 . . 6 To Critical Strikes . | . . . . . Average Backups 4 | 1 4 4 5 6 Power . | . 1 1 1 1 Propulsion . | . 1 . . . Utility 2 | . 1 2 3 3 Weapon 1 | . 1 1 . 1 Tool/Special . | . . . . . Unused Backups 9 | . 4 . 2 3 Power 1 | . . . . 1 Propulsion 3 | . 3 . . . Utility 4 | . . . 2 2 Weapon 1 | . 1 . . . Tool/Special . | . . . . . Average Slot Usage (%) 94 | . 94 99 99 84 Engine 12 | . 14 14 11 4 Leg 13 | . 3 27 22 9 Wheel 9 | . 20 . . 5 Device 10 | . 11 14 7 4 Storage 3 | . 4 . 3 6 Processor 11 | . 10 14 11 11 Protection 3 | . . . 11 10 Energy Gun 23 | . 26 28 22 9 Energy Cannon 2 | . . . . 18 Launcher 2 | . . . 10 4 Peak Build Rating 14 | 6 7 7 14 14 Average Rating 8 | 4 6 6 11 12 On Entrance 6 | . 6 6 7 14 Avg Prop Armor Cover (%) . | . . . . . Naked Turns . | . . . . . Heaviest Build 24 | 14 15 9 24 24 Greatest Support 20 | 20 20 20 20 20 Greatest Overweight (x) 7 | 1 1 . 1 7 Average Overweight (x) . | . . . . 1 Largest Inventory Capacity 8 | 8 8 5 8 8 Average Capacity 5 | 7 5 5 5 6 Most Carried 8 | 4 6 5 8 8 Average Carried 4 | 1 4 4 5 6 Final Capacity 8 | 8 5 5 8 5 Final Carried 8 | 4 5 4 8 5 Class Distribution -------------------- 42% | Mutant 33% | Scavenger-Mutant 19% | Tank 5% | Scavenger-Tank Dominant Class ---------------- Mutant | -10/Materials Scavenger-Mutant | -10/Mines Tank | -9/Materials Tank | -9/Mines Resources | -11 -10 -10 -9 -9 ----------- Run | Yrd Mat Min Mat Min Matter Collected 570 | 185 180 10 21 174 Remotely . | . . . . . Salvage Created 874 | . 535 . 21 318 Parts 31 | . 21 . 2 8 Haulers Intercepted 2 | . 2 . . . Recyclers Shooed 1 | . 1 . . . Parts Field Recycled . | . . . . . Retrieved Matter . | . . . . . Parts Self-Destructed . | . . . . . Prevented . | . . . . . Parts Restored . | . . . . . Kills | -11 -10 -10 -9 -9 ------- Run | Yrd Mat Min Mat Min Combat Hostiles Destroyed 37 | . 11 . . 26 Guns 13 | . 10 . . 3 Cannons 2 | . . . . 2 AOE 22 | . 1 . . 21 Classes Destroyed 7 | . 4 . . 3 Tunneler 1 | . . . . 1 Hauler 2 | . 2 . . . Watcher 4 | . 3 . 1 . Swarmer 3 | . 3 . . . Grunt 14 | . 8 . . 6 Demolisher 2 | . . . . 2 Assembled 18 | . . . . 18 Best Kill Streak 18 | . 4 . 1 18 Combat Bots Only 18 | . 4 . . 18 Max Kills in Single Turn 4 | . 1 . 1 4 Gunslinging . | . . . . . Exploded 4 | . 1 . . 4 Melee . | . . . . . Uniques/NPCs Destroyed . | . . . . . Combat | -11 -10 -10 -9 -9 -------- Run | Yrd Mat Min Mat Min Hostile Shots Fired 216 | . 63 . . 153 Missed 76 | . 23 . . 53 Hits 140 | . 40 . . 100 Projectile 140 | . 40 . . 100 AOE 13 | . . . . 13 Damage Taken 2048 | . 425 . . 1623 Core 510 | . 105 . . 405 Absorbed by Shields . | . . . . . Core Remaining (%) 79 | 100 . 58 . . Volleys Fired 102 | . 64 . 1 37 Largest 3 | . 2 . 2 3 Hottest 204 | . 100 . 106 204 Shots Fired 162 | . 108 . 2 52 Gun 121 | . 107 . 2 12 Cannon 15 | . . . . 15 Launcher 26 | . 1 . . 25 Special . | . . . . . Kinetic . | . . . . . Thermal 136 | . 107 . 2 27 Explosive 26 | . 1 . . 25 Electromagnetic . | . . . . . Robot Hit Streak 9 | . 9 . 2 5 Robot Miss Streak 4 | . 4 . . 3 Penetration Max . | . . . . . Secondary Targets 1 | . 1 . . . Max Gunslinging Chain 1 | . 1 . . . Shots Hit Robots 97 | . 69 . 2 26 Core Hits 73 | . 29 . 1 43 Critical Kills . | . . . . . Critical Parts Destroyed . | . . . . . Critical Strikes 9 | . 9 . . . Burn 9 | . 9 . . . Melee Attacks . | . . . . . Impact . | . . . . . Slashing . | . . . . . Piercing . | . . . . . Sneak Attacks . | . . . . . Combat Hostiles . | . . . . . Follow-up Attacks . | . . . . . Damage Inflicted 2758 | . 920 . 30 1808 Guns 992 | . 875 . 30 87 Cannons 188 | . . . . 188 Explosions 1578 | . 45 . . 1533 Melee . | . . . . . Ramming . | . . . . . Kinetic . | . . . . . Thermal 1180 | . 875 . 30 275 Explosive 1578 | . 45 . . 1533 Electromagnetic . | . . . . . Impact . | . . . . . Slashing . | . . . . . Piercing . | . . . . . Highest Corruption 3 | . 1 1 3 3 Average Corruption 1 | . 1 1 2 3 Corruption Purged . | . . . . . Corruption Blocked . | . . . . . Effects 9 | . 3 3 . 3 Message Errors 4 | . 1 1 . 2 Matter Fused 2 | . 1 . . 1 Heat Flow Errors 1 | . 1 . . . Parts Fused 1 | . . 1 . . Alerts 1 | . . 1 . . Overload Shots . | . . . . . Overflow Damage 92 | . . . . 92 Projectiles . | . . . . . Explosions 92 | . . . . 92 Melee . | . . . . . Knockbacks . | . . . . . Impact . | . . . . . Kinetic . | . . . . . Secondary . | . . . . . Self-Inflicted Damage 49 | . . . . 49 Shots 1 | . . . . 1 Rammed . | . . . . . Targets Rammed . | . . . . . Kicked . | . . . . . Crushed . | . . . . . Highest Temperature 417 | . 273 . . 417 Average Temperature 87 | . 63 . . 129 Received Heat Transfer 579 | . 186 . . 393 Effects 4 | . 1 . . 3 Energy Bleed 1 | . 1 . . . Interference 2 | . . . . 2 Matter Decay 1 | . . . . 1 Siege Activations . | . . . . . Martial Activations . | . . . . . Shielding Activations . | . . . . . Robots Disrupted . | . . . . . Combat Hostiles . | . . . . . Robots Corrupted . | . . . . . Combat Hostiles . | . . . . . Parts Fried . | . . . . . Impact Corruptions . | . . . . . Robots Melted . | . . . . . Combat Hostiles . | . . . . . Parts Melted 5 | . 5 . . . Heat Transferred 3885 | . 3256 . 74 555 Parts Sabotaged . | . . . . . Parts Stolen . | . . . . . Parts Stripped . | . . . . . Power Chain Reactions . | . . . . . Alert | -11 -10 -10 -9 -9 ------- Run | Yrd Mat Min Mat Min Maximum Alert Level . | . . . . . Low Security (%) 100 | 100 100 100 100 100 Level 1 . | . . . . . Level 2 . | . . . . . Level 3 . | . . . . . Level 4 . | . . . . . Level 5 . | . . . . . High Security . | . . . . . Max Security . | . . . . . Peak Influence 152 | . 103 22 7 152 Initial 22 | . . 22 . . Average 29 | . 35 1 . 89 Influence Increases 697 | . 413 . 12 272 Destroy 0b10 Robot/C 380 | . 220 . . 160 Destroy 0b10 Robot/NC 35 | . 25 . 5 5 Destroy Leader 82 | . 50 . 2 30 Successful Hack 42 | . 37 . 5 . Select Force Hacks 30 | . 30 . . . Disable Machine 15 | . 15 . . . Destroy Structure 83 | . 6 . . 77 Lose Combat Pursuer 30 | . 30 . . . Influence Decreases 695 | . 354 59 12 270 Entered New Map 37 | . . 37 . . Time Decay 538 | . 344 22 12 160 Lost Part 120 | . 10 . . 110 Squads Dispatched 4 | . 3 . . 1 Investigation 3 | . 3 . . . Extermination . | . . . . . Reinforcement 1 | . . . . 1 Assault . | . . . . . Garrison . | . . . . . Intercept . | . . . . . Searches Triggered . | . . . . . Construction Impeded 1 | . . . . 1 Haulers Reinforced . | . . . . . Active Scanning Responses . | . . . . . Cargo Convoy Interrupts . | . . . . . Stealth | -11 -10 -10 -9 -9 --------- Run | Yrd Mat Min Mat Min Distress Signals 1 | . 1 . . . Communications Jammed . | . . . . . Distress Signals . | . . . . . Times Spotted 52 | . 21 . 1 30 Peak Tracking Total 17 | . 4 . 1 17 Tactical Retreats 3 | . 2 . . 1 Traps | -11 -10 -10 -9 -9 ------- Run | Yrd Mat Min Mat Min Traps Triggered 4 | . 2 . 2 . Indirectly . | . . . . . Trap Hack Attempts . | . . . . . Triggered . | . . . . . Disarmed . | . . . . . Reprogrammed . | . . . . . Reused . | . . . . . Traps Extracted . | . . . . . Installed . | . . . . . Triggered . | . . . . . Machines | -11 -10 -10 -9 -9 ---------- Run | Yrd Mat Min Mat Min Machines Disabled 1 | . 1 . . . Max in Single Turn 1 | . 1 . . . Machines Repaired . | . . . . . Machines Dismantled . | . . . . . Machines Sabotaged . | . . . . . Overloaded Fab Kills . | . . . . . Hacking | -11 -10 -10 -9 -9 --------- Run | Yrd Mat Min Mat Min Machines Accessed 12 | . 11 . 1 . Terminals 9 | . 8 . 1 . Fabricators . | . . . . . Repair Stations 1 | . 1 . . . Recycling Units 2 | . 2 . . . Scanalyzers . | . . . . . Garrison Access . | . . . . . Total Hacks 39 | . 32 . 7 . Successful 19 | . 15 . 4 . Failed 20 | . 17 . 3 . Catastrophic . | . . . . . Database Lockouts . | . . . . . Manual 28 | . 22 . 6 . Terminals 35 | . 28 . 7 . Fabricators . | . . . . . Repair Stations 1 | . 1 . . . Recycling Units 3 | . 3 . . . Scanalyzers . | . . . . . Garrison Access . | . . . . . Terminal Hacks 7 | . 5 . 2 . Alert Level 1 | . . . 1 . Locate Traps 3 | . 2 . 1 . Hauler Manifests 1 | . 1 . . . Zone Layout 2 | . 2 . . . Fabricator Hacks . | . . . . . Repair Station Hacks . | . . . . . Recycling Unit Hacks 2 | . 2 . . . Report Inventory 1 | . 1 . . . Retrieve Components 1 | . 1 . . . Scanalyzer . | . . . . . Garrison Access Hacks . | . . . . . Unauthorized Hacks 10 | . 8 . 2 . Terminals 9 | . 7 . 2 . Assimilate 1 | . 1 . . . Botnet 6 | . 5 . 1 . Operators 2 | . 1 . 1 . Fabricators . | . . . . . Repair Stations . | . . . . . Recycling Units 1 | . 1 . . . Tunnel 1 | . 1 . . . Scanalyzers . | . . . . . Garrison Access . | . . . . . Data Cores Recovered . | . . . . . Used . | . . . . . Hacking Detections 9 | . 8 . 1 . Full Trace Events 3 | . 3 . . . Feedback Events . | . . . . . Feedback Blocked . | . . . . . Robot Schematics Acquired . | . . . . . Robots Built . | . . . . . Authchips . | . . . . . Time . | . . . . . Total Robot Build Rating . | . . . . . Part Schematics Acquired . | . . . . . Parts Built . | . . . . . Authchips . | . . . . . Time . | . . . . . Total Part Build Rating . | . . . . . Part Studies Acquired . | . . . . . Parts Repaired . | . . . . . Time . | . . . . . Parts Recycled . | . . . . . Recycled Matter . | . . . . . Retrieved Matter . | . . . . . Retrieved Components 10 | . 10 . . . Parts Scanalyzed . | . . . . . Part Schematics Acquired . | . . . . . Parts Damaged . | . . . . . Bothacking | -11 -10 -10 -9 -9 ------------ Run | Yrd Mat Min Mat Min Used RIF Installer . | . . . . . Robots Hacked . | . . . . . Non-combat . | . . . . . Combat . | . . . . . Robot Hacks Applied . | . . . . . Relay Couplers Released . | . . . . . Fabnet Peak Effective % . | . . . . . Robots Rewired . | . . . . . Allies Hacked . | . . . . . Hacks Repelled . | . . . . . Allies | -11 -10 -10 -9 -9 -------- Run | Yrd Mat Min Mat Min Total Allies . | . . . . . Largest Group . | . . . . . Highest-Rated Group . | . . . . . Highest-Rated Ally . | . . . . . Total Orders . | . . . . . Ally Attacks . | . . . . . Total Damage . | . . . . . Kills . | . . . . . Allies Corrupted . | . . . . . Allies Melted . | . . . . . Intel | -11 -10 -10 -9 -9 ------- Run | Yrd Mat Min Mat Min Active Infowar (turns) . | . . . . . Robot Analysis Total . | . . . . . Derelict Logs Recovered 1 | . . 1 . . Drone Launches . | . . . . . Drone Recoveries . | . . . . . Exploration | -11 -10 -10 -9 -9 ------------- Run | Yrd Mat Min Mat Min Turns Passed 2165 | 75 913 612 229 336 Spaces Moved 1458 | 73 690 505 144 46 Core 9 | 5 . . . 4 Treads . | . . . . . Legs 825 | . 142 505 144 34 Wheels 624 | 68 548 . . 8 Hover . | . . . . . Flight . | . . . . . Fastest Speed 50 | 50 80 120 120 110 Average Speed 107 | 80 89 120 137 198 Slowest Speed 400 | 100 190 120 190 400 Overloaded Moves . | . . . . . Propulsion Burnouts . | . . . . . Robots Hopped . | . . . . . Potential Cave-ins . | . . . . . Cave-ins Triggered . | . . . . . Exploration Rate (%) 47 | 4 91 95 17 28 Regions Visited 4 Branch Regions 2 Pre-discovered Areas 1 | . 1 . . . Known Exits Taken 3 | . 1 1 1 . Unknown Exits Taken 1 | 1 . . . . Scrap Searched 1 | . . 1 . . Spaces Dug . | . . . . . Terrain Destroyed 134 | . 5 . . 129 Melee . | . . . . . Projectile 1 | . . . . 1 AOE 133 | . 5 . . 128 Terrain Rammed . | . . . . . Walls Destroyed . | . . . . . Machines Disabled . | . . . . . Actions | -11 -10 -10 -9 -9 --------- Run | Yrd Mat Min Mat Min Total 1893 | 88 880 511 174 240 Wait 260 | . 102 4 7 147 Move 1454 | 72 689 504 143 46 Hop . | . . . . . Pick Up 33 | 10 9 1 11 2 Fast Attach . | . . . . . Attach 16 | 6 2 1 2 5 Detach . | . . . . . Swap 13 | . 7 . 4 2 Drop 15 | . 7 1 6 1 Fire 102 | . 64 . 1 37 Melee . | . . . . . Ram . | . . . . . Kick . | . . . . . Crush . | . . . . . Escape Stasis . | . . . . . Rewire . | . . . . . Trap . | . . . . . Miscellaneous . | . . . . . Route ------- -11/Scrapyard -10/Materials (discovered 5 exits: *Mat x3 / *Min x2) -10/Mines (discovered 2 exits: *Mat x2) -9/Materials (discovered 2 exits: *Min / *Sto) -9/Mines History --------- Turn | Location | Event 24 | -11/Scrapyard | Discovered new exit (range 16) 76 | -11/Scrapyard | Entered Materials 284 | -10/Materials | Discovered new exit (range 13) 297 | -10/Materials | Identified exit to Mines 317 | -10/Materials | Build established: Mutant 388 | -10/Materials | Discovered new exit (range 16) 406 | -10/Materials | Identified exit to Materials 471 | -10/Materials | Discovered exit to Materials (range 10) 690 | -10/Materials | Discovered exit to Mines (range 4) 760 | -10/Materials | Discovered exit to Materials (range 14) 989 | -10/Materials | Entered Mines 1024 | -10/Mines | Learned Materials terminal intel 1152 | -10/Mines | Received a Rocket Launcher from a helpful Derelict 1175 | -10/Mines | Discovered exit to Materials (range 4) 1192 | -10/Mines | Build established: Scavenger-Mutant 1216 | -10/Mines | Discovered exit to Materials (range 9) 1334 | -10/Mines | Found a hidden stash of uninstalled traps 1601 | -10/Mines | Entered Materials 1601 | -9/Materials | Evolved 2 slots: Utility x1, Weapon x1 1602 | -9/Materials | Loaded intel: 12 terminal locations 1737 | -9/Materials | Discovered new exit (range 16) 1786 | -9/Materials | Discovered new exit (range 13) 1788 | -9/Materials | Identified exit to Storage 1816 | -9/Materials | Identified exit to Mines 1830 | -9/Materials | Entered Mines 1840 | -9/Mines | Met a Derelict bent on vengeance 1880 | -9/Mines | Assembled infested the area 1949 | -9/Mines | Destroyed 18 combat bots 1971 | -9/Mines | Core integrity fell below 50% 2000 | -9/Mines | Build established: Tank 2008 | -9/Mines | Lost 5 parts (1p2n1u1w) 2046 | -9/Mines | Core integrity fell below 20% 2166 | -9/Mines | Destroyed by S-10 Pest with Light Assault Rifle Last Messages --------------- 02067_ K-01 Serf collects debris. 02067_ U-05 Engineer lays Concrete. 02070_ K-01 Serf collects debris. 02070_ U-05 Engineer lays Concrete. 02072_ K-01 Serf collects debris. 02073_ U-05 Engineer lays Concrete. 02073_ K-01 Serf collects debris. 02074_ U-05 Engineer lays Concrete. 02077_ K-01 Serf collects debris. 02097_ Wheel destroyed. 02098_ K-01 Serf collects debris. 02108_ K-01 Serf destroyed. 02108_ K-01 Serf collects debris. 02112_ Wheel destroyed. 02130_ Particle Cannon destroyed. 02140_ K-01 Serf collects debris. 02158_ Hrd. Light Armor Plating destroyed. 02161_ Cooling System destroyed. 02162_ Particle Cannon destroyed. 02166_ K-01 Serf collects debris. Map ----- +----------------------------------------------------+ | ?????????????????????????????????????????????????? | | ?????????????????????????????????????????????????? | | ?????????????????????????????????????????????????? | | ??????????# # ???????????????????????????????? | | ?????????# % # #??????????????????????????????? | | ?????????# = # ##?????????????????????????????? | | ????????## [ # ??????????????????????????????? | | ????????## %% ??????????????????????????????? | | ???????## #??????????????????????????????? | | ???????# #??????????????????????????????? | | ???????# ###????????????????????????????? | | ???????# #????????????????????????????? | | ???????# #????????????????????????????? | | ????????# #????????????????????????????? | | ??????### #????????????????????????????? | | ####### ##???????????????????????????? | | # ## # # ! ##??????????????????????????? | | # ## # % ###????????????????????????? | | r < ##???????????????????????? | | # #???????????????????????? | | [% # # ## # # #??###??????????????????? | | # # ## ### ##??#??????????????? | | = # #### # # r # #??????????????? | | ####### # ! ###% ????????? | | ##???# %sss= %s % ????????? | | #???### k@!g = ????????? | | ##????# % ##### ????????? | | #????# !##????## #?????????? | | #???# ##?????????####?????????? | | ###??? ######???????????????????????? | | ###??? ##????????????????????????????? | | ###?????? #?????????????????????????????? | | ##???????? #?????????????????????????????? | | #?????????? =%??????????????????????????????? | | #?????????????# ????????????????????????????????? | | ?????????????????????????????????????????????????? | | ?????????????????????????????????????????????????? | | ?????????????????????????????????????????????????? | | ?????????????????????????????????????????????????? | | ?????????????????????????????????????????????????? | | ?????????????????????????????????????????????????? | | ?????????????????????????????????????????????????? | | ?????????????????????????????????????????????????? | | ?????????????????????????????????????????????????? | | ?????????????????????????????????????????????????? | | ?????????????????????????????????????????????????? | | ?????????????????????????????????????????????????? | | | | | | | +----------------------------------------------------+ Best States ------------- Heat Dissipation 50 Energy Generation 10 Energy Capacity 250 Matter Stores 300 Matter Capacity 300 Sight Range 16 Terrain Scan Density 10 Armor Coverage 150 Evasion (%) 55 Item Schematics ----------------- None Robot Schematics ------------------ None Fabricated ------------ Nothing Repaired ---------- Nothing Studied --------- None Alien Tech Used ----------------- None Achievements -------------- Exterminator Challenges ------------ None Game ------ Seed AlloyProcessingShield Manual? 0 Play Time 00:28:12 Cumulative 63.8 hours Start 2026.01.27 @ 21:45:00 End 2026.01.27 @ 22:12:02 Sessions 1 Manual Loads 0 Difficulty Rogue Special Mode None Game No. 120 Rogue 120 Adventurer 0 Explorer 0 Win Type - Total 0 Types 0/0/0/0/0/0/0/0/0/0 Lore% 24 Gallery% 31 Achievement% 22 Wizard Run 0 Options --------- Layout 1 ASCII 0 Keyboard 0 Movement Mouse Keybinds 0 Fullscreen 1 Font 32/Cog Map View 50x35 Zoom Use 0% Tactical HUD 1 Map Filters NONE Filters NONE Steam 1 RUN: 2e8dc56b-9d89-48fe-8d8a-736ad4583f25